bitfinex-derivatives/quotes_BTCF0:USTF0_20260214
["timestamp","ask_amount","ask_price","bid_price","bid_amount"]
[1771094798770,4.2e-07,69756.0,69755.0,0.014342]
[1771094800675,4.2e-07,69756.0,69752.0,0.01444]
[1771094800875,4.2e-07,69756.0,69752.0,0.028782]
[1771094802177,4.2e-07,69756.0,69752.0,0.043124]
[1771094802880,4.2e-07,69756.0,69752.0,0.028782]
[1771094803978,4.2e-07,69756.0,69752.0,0.043124]
[1771094804277,4.2e-07,69756.0,69752.0,0.028782]
[1771094804472,4.2e-07,69756.0,69752.0,0.043124]
[1771094805072,4.2e-07,69756.0,69752.0,0.028782]
[1771094807577,4.2e-07,69756.0,69752.0,0.043124]
[1771094807976,4.2e-07,69756.0,69754.0,0.014342]
[1771094808177,4.2e-07,69756.0,69755.0,0.014342]
[1771094808479,0.10661778,69775.0,69756.0,0.11555091]
[1771094808686,0.014339,69770.0,69762.0,0.01434]
[1771094808878,0.0144,69769.0,69762.0,0.01434]
[1771094809080,0.07166846,69766.0,69762.0,0.01434]
[1771094809278,0.07166846,69766.0,69763.0,0.01434]
[1771094809478,0.07166846,69766.0,69760.0,0.014341]
[1771094810182,0.07166846,69766.0,69761.0,0.014341]
[1771094810387,4.6e-07,69766.0,69765.0,0.01434]
[1771094810688,4.6e-07,69766.0,69762.0,0.01434]
[1771094810881,0.07166653,69767.0,69765.0,0.01434]
[1771094811280,0.07166653,69767.0,69763.0,0.01434]
[1771094811480,0.07166653,69767.0,69764.0,0.01434]
[1771094812086,5.3e-07,69767.0,69766.0,0.01434]
[1771094812582,0.05732394,69772.0,69766.0,0.10120891]
[1771094812782,0.0144,69775.0,69771.0,0.014338]
[1771094813176,0.0144,69775.0,69769.0,0.014339]
[1771094814379,0.0144,69775.0,69769.0,0.015339]
[1771094814785,0.0144,69775.0,69769.0,0.029678]
[1771094816486,0.0144,69775.0,69770.0,0.014339]
[1771094816684,0.014336,69785.0,69772.0,0.014338]
[1771094816884,0.14344,69781.0,69773.0,0.014338]
[1771094817086,0.07165788,69776.0,69773.0,0.014338]
[1771094817284,0.07165788,69776.0,69775.0,0.014338]
[1771094817484,8.8e-07,69776.0,69772.0,0.014338]
[1771094817786,0.01440088,69776.0,69772.0,0.014338]
[1771094817986,0.01440088,69776.0,69769.0,0.014339]
[1771094818180,0.01440088,69776.0,69768.0,0.0144]
[1771094818382,0.014338,69774.0,69768.0,0.0144]
[1771094818577,0.014338,69774.0,69754.0,0.11555091]
[1771094818890,0.10661778,69774.0,69766.0,0.014339]
[1771094819187,0.10661778,69774.0,69764.0,0.01434]
[1771094819188,0.12095578,69774.0,69765.0,0.01434]
[1771094819886,0.12095578,69774.0,69764.0,0.02874]
[1771094820086,0.12095578,69774.0,69765.0,0.01434]
[1771094820284,0.014339,69770.0,69764.0,0.0144]
[1771094820482,0.014339,69770.0,69763.0,0.0144]
[1771094820682,0.014339,69771.0,69763.0,0.02874]
[1771094821092,0.028738,69772.0,69763.0,0.02874]
[1771094821687,8.8e-07,69776.0,69763.0,0.02874]
[1771094821688,8.8e-07,69776.0,69772.0,0.014338]
[1771094821886,0.01430216,69775.0,69772.0,0.014338]
[1771094822190,9.6e-07,69773.0,69772.0,0.028738]
[1771094822384,0.14344,69781.0,69779.0,0.014337]
[1771094822580,0.14344,69781.0,69778.0,0.014337]
[1771094822892,0.14344,69791.0,69777.0,0.10120891]
[1771094823186,0.10661778,69798.0,69777.0,0.10120891]
[1771094823187,0.07164451,69789.0,69781.0,0.014336]
[1771094823383,0.07164451,69789.0,69785.0,0.014336]
[1771094823584,0.0144,69788.0,69785.0,0.014336]
[1771094823788,0.0144,69788.0,69783.0,0.014336]
[1771094823977,0.0144,69788.0,69782.0,0.014336]
[1771094824182,0.0144,69788.0,69783.0,0.014336]
[1771094824390,0.0144,69788.0,69784.0,0.014336]
[1771094824898,0.0144,69788.0,69781.0,0.014336]
[1771094825187,0.0144,69788.0,69782.0,0.014336]
[1771094825388,0.0144,69788.0,69783.0,0.014336]
[1771094825789,0.14344,69792.0,69791.0,0.014334]
[1771094825976,0.14344,69792.0,69787.0,0.014335]
[1771094826177,8.3e-07,69789.0,69788.0,0.014335]
[1771094826585,0.07163803,69795.0,69791.0,0.014334]
[1771094826792,0.001,69792.0,69791.0,0.014334]
[1771094827289,0.001,69792.0,69790.0,0.014335]
[1771094827487,0.001,69792.0,69789.0,0.014335]
[1771094827677,0.001,69792.0,69790.0,0.014335]
[1771094827884,0.04516191,69795.0,69790.0,0.014334]
[1771094828090,0.05956191,69795.0,69789.0,0.014335]
[1771094828291,0.05956191,69795.0,69790.0,0.014335]
[1771094828987,0.14344,69800.0,69787.0,0.0144]
[1771094828988,0.12094878,69808.0,69791.0,0.15784]
[1771094829183,0.07162913,69804.0,69797.0,0.014333]
[1771094829384,0.07162913,69804.0,69798.0,0.028733]
[1771094829683,1.3e-07,69804.0,69798.0,0.0144]
[1771094829883,1.3e-07,69807.0,69806.0,0.014331]
[1771094830089,6.3e-07,69806.0,69805.0,0.014332]
[1771094830290,0.05729608,69806.0,69805.0,0.014332]
[1771094830488,8e-08,69806.0,69805.0,0.014332]
[1771094830994,8e-08,69806.0,69798.0,0.0144]
[1771094831193,8e-08,69806.0,69801.0,0.014332]
[1771094831588,8e-08,69806.0,69802.0,0.014332]
[1771094833388,8e-08,69806.0,69799.0,0.014333]
[1771094833595,8e-08,69806.0,69798.0,0.0144]
[1771094834095,8e-08,69806.0,69800.0,0.014333]
[1771094834698,8e-08,69806.0,69798.0,0.028733]
[1771094835001,8e-08,69806.0,69799.0,0.014333]
[1771094835297,8e-08,69806.0,69800.0,0.014333]
[1771094835497,8e-08,69806.0,69801.0,0.014332]
[1771094836396,8e-08,69806.0,69800.0,0.014333]
[1771094837299,8e-08,69806.0,69799.0,0.014333]
[1771094837998,8e-08,69806.0,69798.0,0.028733]
[1771094841601,8e-08,69806.0,69799.0,0.014333]
[1771094843602,0.01433108,69806.0,69798.0,0.028733]
[1771094843800,8e-08,69806.0,69799.0,0.014333]
[1771094844002,8e-08,69806.0,69800.0,0.014333]
[1771094844902,8e-08,69806.0,69803.0,0.014332]
[1771094845098,8e-08,69806.0,69804.0,0.014332]
[1771094845298,8e-08,69806.0,69805.0,0.014332]
[1771094845499,0.05729608,69806.0,69802.0,0.014332]
[1771094845699,8e-08,69806.0,69803.0,0.014332]
[1771094845896,8e-08,69806.0,69805.0,0.014332]
[1771094846602,0.014329,69817.0,69805.0,0.014332]
[1771094846603,9.4e-07,69807.0,69806.0,0.014331]
[1771094848305,9.4e-07,69807.0,69806.0,0.015331]
[1771094850302,9.4e-07,69807.0,69806.0,0.014331]
[1771094851205,9.4e-07,69807.0,69806.0,0.015331]
[1771094852211,9.4e-07,69807.0,69806.0,0.12186462]
[1771094852412,9.4e-07,69807.0,69806.0,0.12286462]
[1771094852808,9.4e-07,69807.0,69806.0,0.015331]
[1771094855215,9.4e-07,69807.0,69806.0,0.001]
[1771094855620,9.4e-07,69807.0,69806.0,0.015331]
[1771094855920,9.4e-07,69807.0,69806.0,0.001]
[1771094857417,9.4e-07,69807.0,69805.0,0.028731]
[1771094858518,9.4e-07,69807.0,69806.0,0.014331]
[1771094859218,9.4e-07,69807.0,69805.0,0.0144]
[1771094862520,9.4e-07,69807.0,69806.0,0.014331]
[1771094863520,9.4e-07,69807.0,69806.0,0.015331]
[1771094864617,9.4e-07,69807.0,69806.0,0.014331]
[1771094869232,9.4e-07,69807.0,69805.0,0.0144]
[1771094869532,9.4e-07,69807.0,69806.0,0.0144]
[1771094869735,0.014331,69806.0,69799.0,0.14336]
[1771094869928,0.014332,69805.0,69797.0,0.014333]
[1771094870127,0.014332,69805.0,69796.0,0.014333]
[1771094870422,0.014331,69806.0,69794.0,0.14336]
[1771094870732,0.014331,69806.0,69797.0,0.014333]
[1771094870928,0.014331,69806.0,69798.0,0.0144]
[1771094871635,0.014332,69805.0,69798.0,0.0144]
[1771094872133,0.014331,69806.0,69798.0,0.0144]
[1771094873034,0.028663,69806.0,69798.0,0.0144]
[1771094874340,0.014332,69805.0,69798.0,0.0144]
[1771094874634,0.014332,69805.0,69797.0,0.014333]
[1771094874635,0.014332,69805.0,69797.0,0.028733]
[1771094876534,0.014331,69806.0,69797.0,0.028733]
[1771094876735,0.014331,69806.0,69798.0,0.014333]
[1771094877338,9.4e-07,69807.0,69797.0,0.11833172]
[1771094877528,0.11877163,69810.0,69805.0,0.11826272]
[1771094877732,0.07162708,69806.0,69805.0,0.11826272]
[1771094877928,0.0144,69810.0,69806.0,0.014331]
[1771094878125,0.0144,69810.0,69805.0,0.014331]
[1771094878330,0.07162524,69807.0,69806.0,0.014331]
[1771094879332,2.4e-07,69807.0,69806.0,0.014331]
[1771094879537,0.0144,69813.0,69806.0,0.014331]
[1771094879733,0.07162606,69807.0,69806.0,0.014331]
[1771094880035,0.0144,69813.0,69806.0,0.014331]
[1771094880237,0.0144,69813.0,69807.0,0.014331]
[1771094880533,5e-08,69807.0,69806.0,0.11826272]
[1771094880734,0.0144,69813.0,69809.0,0.014331]
[1771094881240,0.07162303,69810.0,69809.0,0.014331]
[1771094881440,3e-08,69810.0,69809.0,0.014331]
[1771094881644,0.0144,69815.0,69809.0,0.014331]
[1771094881839,0.0144,69815.0,69811.0,0.02866]
[1771094882139,7.7e-07,69810.0,69809.0,0.014331]
[1771094882335,0.0144,69815.0,69809.0,0.014331]
[1771094882541,7.7e-07,69810.0,69809.0,0.11826272]
[1771094882738,0.0144,69817.0,69809.0,0.11826272]
[1771094882935,0.0144,69817.0,69810.0,0.014331]
[1771094883130,1.6e-07,69810.0,69809.0,0.014331]
[1771094883336,0.0144,69818.0,69812.0,0.01433]
[1771094883645,0.07161883,69814.0,69809.0,0.014331]
[1771094884644,0.07161883,69814.0,69808.0,0.014331]
[1771094889344,0.0144,69818.0,69811.0,0.02866]
[1771094889549,0.0144,69818.0,69809.0,0.014331]
[1771094889742,0.07161887,69814.0,69808.0,0.014331]
[1771094889943,0.07161887,69814.0,69809.0,0.014331]
[1771094890143,0.07161887,69814.0,69811.0,0.01433]
[1771094890550,0.07161887,69814.0,69813.0,0.01433]
[1771094891045,0.07161887,69814.0,69811.0,0.01433]
[1771094891046,0.07161887,69814.0,69812.0,0.01433]
[1771094894150,0.07161887,69814.0,69813.0,0.01433]
[1771094894340,8.7e-07,69814.0,69813.0,0.01433]
[1771094894542,0.01309673,69814.0,69813.0,0.01433]
[1771094894848,7.3e-07,69814.0,69813.0,0.01433]
[1771094895245,7.3e-07,69814.0,69813.0,0.02873]
[1771094895844,0.14336,69826.0,69813.0,0.02873]
[1771094895845,0.12374261,69834.0,69815.0,0.10407276]
[1771094896041,0.07160901,69823.0,69820.0,0.014328]
[1771094898450,0.07160901,69823.0,69819.0,0.028729]
[1771094898652,0.07160901,69823.0,69819.0,0.0144]
[1771094899754,0.07160901,69823.0,69819.0,0.028729]
[1771094901754,0.07160901,69823.0,69819.0,0.043058]
[1771094901955,0.07160901,69823.0,69819.0,0.028729]
[1771094902659,0.07160901,69823.0,69821.0,0.014328]
[1771094902957,0.07160901,69823.0,69820.0,0.014328]
[1771094903857,0.01532801,69823.0,69822.0,0.014328]
[1771094904052,0.07160961,69823.0,69822.0,0.014328]
[1771094904259,0.0144,69828.0,69823.0,0.014328]
[1771094904557,0.08600504,69828.0,69819.0,0.0144]
[1771094904751,0.014328,69824.0,69819.0,0.0144]
[1771094905061,0.014328,69824.0,69818.0,0.0144]
[1771094905558,0.014328,69823.0,69818.0,0.0144]
[1771094905950,0.014328,69824.0,69818.0,0.0144]
[1771094906552,0.014328,69823.0,69817.0,0.0144]
[1771094907358,0.014328,69824.0,69817.0,0.0144]
[1771094908656,0.014328,69824.0,69816.0,0.0144]
[1771094908657,0.014329,69820.0,69816.0,0.0144]
[1771094908856,0.014329,69820.0,69814.0,0.0144]
[1771094909156,0.014329,69820.0,69813.0,0.0144]
[1771094909760,0.028728,69821.0,69813.0,0.0144]
[1771094910064,0.043056,69821.0,69813.0,0.0144]
[1771094910862,0.014329,69820.0,69813.0,0.0144]
[1771094911062,0.028657,69820.0,69813.0,0.0144]
[1771094911260,0.014329,69819.0,69813.0,0.0144]
[1771094911562,0.028657,69820.0,69813.0,0.0144]
[1771094911763,0.0144,69821.0,69813.0,0.0144]
[1771094912067,0.0144,69821.0,69816.0,0.014329]
[1771094912256,0.014328,69820.0,69818.0,0.014329]
[1771094912563,0.0144,69823.0,69819.0,0.014329]
[1771094912760,0.014328,69820.0,69819.0,0.014329]
[1771094912957,0.07160504,69828.0,69820.0,0.014328]
[1771094913161,0.0144,69827.0,69824.0,0.014328]
[1771094913368,0.0144,69827.0,69825.0,0.014327]
[1771094913859,0.07160504,69828.0,69824.0,0.014328]
[1771094914057,0.0144,69831.0,69829.0,0.014327]
[1771094914258,0.14332,69836.0,69822.0,0.028728]
[1771094914259,0.01400496,69832.0,69822.0,0.028728]
[1771094914458,0.0144,69832.0,69825.0,0.014327]
[1771094914661,0.0144,69832.0,69826.0,0.014327]
[1771094915358,0.0144,69832.0,69827.0,0.014327]
[1771094915757,0.001,69831.0,69827.0,0.014327]
[1771094916462,0.0144,69832.0,69827.0,0.014327]
[1771094917962,0.0144,69832.0,69826.0,0.014327]
[1771094918466,0.0144,69832.0,69827.0,0.014327]
[1771094919460,0.0144,69832.0,69828.0,0.014327]
[1771094919656,0.014324,69843.0,69834.0,0.014326]
[1771094919862,0.28648674,69842.0,69833.0,0.014326]
[1771094920066,0.028724,69842.0,69833.0,0.014326]
[1771094920268,0.0144,69842.0,69834.0,0.014326]
[1771094920466,0.10941661,69845.0,69837.0,0.014325]
[1771094920669,0.014324,69843.0,69834.0,0.014326]
[1771094920868,0.014324,69843.0,69832.0,0.028726]
[1771094921067,0.1397648,69844.0,69834.0,0.014326]
[1771094921369,0.27204007,69843.0,69834.0,0.014326]
[1771094921564,0.1110408,69838.0,69832.0,0.0144]
[1771094921771,0.014325,69840.0,69832.0,0.0144]
[1771094922165,0.014325,69839.0,69832.0,0.0144]
[1771094922370,0.028724,69840.0,69832.0,0.0144]
[1771094923568,0.0144,69840.0,69832.0,0.0144]
[1771094923964,0.0144,69840.0,69833.0,0.014326]
[1771094924165,0.0144,69840.0,69837.0,0.014325]
[1771094924871,0.0144,69840.0,69838.0,0.014325]
[1771094925761,0.0144,69840.0,69833.0,0.014326]
[1771094925966,0.12696689,69840.0,69834.0,0.014326]
[1771094926471,0.12696689,69840.0,69835.0,0.014325]
[1771094928171,0.12696689,69840.0,69835.0,0.02865]
[1771094928368,0.12696689,69840.0,69836.0,0.014325]
[1771094929175,0.12696689,69840.0,69835.0,0.014325]
[1771094929367,0.12696689,69840.0,69833.0,0.014326]
[1771094929967,0.12696689,69840.0,69834.0,0.014325]
[1771094930264,0.12696689,69840.0,69835.0,0.014325]
[1771094931176,0.12696689,69840.0,69836.0,0.014325]
[1771094932575,0.12696689,69840.0,69835.0,0.014325]
[1771094933978,0.12696689,69840.0,69834.0,0.014326]
[1771094934578,0.12696689,69840.0,69835.0,0.014325]
[1771094935476,0.11256689,69842.0,69839.0,0.014325]
[1771094935675,0.11256689,69837.0,69828.0,0.14332]
[1771094935875,0.11256689,69832.0,69826.0,0.014327]
[1771094936180,0.11256689,69832.0,69825.0,0.0144]
[1771094936181,0.11256689,69832.0,69827.0,0.014327]
[1771094936375,0.0144,69834.0,69826.0,0.014327]
[1771094936877,0.0144,69834.0,69827.0,0.014327]
[1771094940383,0.11256689,69831.0,69824.0,0.0144]
[1771094940585,0.11256689,69831.0,69824.0,0.028728]
[1771094940776,0.11256689,69831.0,69824.0,0.0144]
[1771094941282,0.12696689,69831.0,69824.0,0.0144]
[1771094941782,0.0144,69831.0,69824.0,0.0144]
[1771094942179,0.0144,69831.0,69827.0,0.014327]
[1771094942581,0.0144,69832.0,69828.0,0.014327]
[1771094942781,0.11256689,69844.0,69827.0,0.0144]
[1771094942983,0.28311243,69843.0,69829.0,0.014327]
[1771094943177,0.014324,69841.0,69831.0,0.014326]
[1771094943882,0.0144,69840.0,69833.0,0.014326]
[1771094944184,0.0144,69840.0,69832.0,0.014326]
[1771094944386,0.028724,69840.0,69831.0,0.014326]
[1771094944684,0.014325,69837.0,69830.0,0.0144]
[1771094944886,0.014325,69836.0,69830.0,0.0144]
[1771094945187,0.014325,69837.0,69830.0,0.0144]
[1771094945486,0.04305,69837.0,69830.0,0.0144]
[1771094945985,0.12689189,69835.0,69830.0,0.0144]
[1771094946185,0.014326,69832.0,69826.0,0.0144]
[1771094946382,0.014326,69832.0,69825.0,0.0144]
[1771094946983,0.014326,69831.0,69825.0,0.0144]
[1771094947184,0.014327,69829.0,69820.0,0.157648]
[1771094947483,0.014327,69829.0,69821.0,0.0144]
[1771094949592,0.028726,69830.0,69821.0,0.028728]
[1771094950189,0.014327,69829.0,69821.0,0.0144]
[1771094951791,0.028726,69830.0,69821.0,0.028728]
[1771094953490,0.043053,69830.0,69821.0,0.028728]
[1771094953691,0.028726,69830.0,69821.0,0.028728]
[1771094954689,0.028726,69830.0,69820.0,0.14332]
[1771094954690,0.10585235,69827.0,69820.0,0.14332]
[1771094954891,0.10585235,69825.0,69819.0,0.014329]
[1771094955093,0.0144,69827.0,69818.0,0.028729]
[1771094955291,0.0144,69827.0,69819.0,0.014329]
[1771094955893,0.0144,69827.0,69818.0,0.028729]
[1771094956200,0.0144,69827.0,69819.0,0.014329]
[1771094956396,0.0144,69827.0,69818.0,0.028729]
[1771094956896,0.0144,69827.0,69820.0,0.001]
[1771094957392,0.0144,69827.0,69819.0,0.014329]
[1771094958294,0.0144,69827.0,69820.0,0.001]
[1771094959091,0.0144,69827.0,69819.0,0.014329]
[1771094959397,0.0144,69827.0,69818.0,0.028729]
[1771094959398,0.028727,69827.0,69818.0,0.028729]
[1771094959585,0.12025235,69827.0,69818.0,0.0144]
[1771094960098,0.12018035,69825.0,69816.0,0.014329]
[1771094960295,0.0144,69824.0,69816.0,0.014329]
[1771094960894,0.0144,69824.0,69818.0,0.001]
[1771094961096,0.0144,69824.0,69816.0,0.014329]
[1771094962099,0.0144,69824.0,69816.0,0.028658]
[1771094962299,0.0144,69824.0,69817.0,0.014329]
[1771094962899,0.0144,69824.0,69819.0,0.014329]
[1771094963296,0.0144,69824.0,69818.0,0.014329]
[1771094963497,0.014327,69828.0,69818.0,0.014329]
[1771094963703,0.0144,69827.0,69818.0,0.014329]
[1771094963999,0.028727,69827.0,69818.0,0.014329]
[1771094964306,0.014327,69826.0,69817.0,0.014329]
[1771094964709,0.014327,69825.0,69815.0,0.0144]
[1771094964904,0.0144,69824.0,69815.0,0.0144]
[1771094965807,0.014328,69823.0,69815.0,0.0144]
[1771094966901,0.014328,69823.0,69814.0,0.02873]
[1771094967102,0.028656,69823.0,69814.0,0.02873]
[1771094967301,0.014328,69823.0,69814.0,0.02873]
[1771094967905,0.014329,69819.0,69810.0,0.01433]
[1771094968208,0.0144,69818.0,69810.0,0.02873]
[1771094969103,0.0144,69818.0,69811.0,0.01433]
[1771094970412,0.0144,69818.0,69812.0,0.01433]
[1771094971413,0.0144,69818.0,69810.0,0.0144]
[1771094971717,0.028729,69818.0,69810.0,0.0144]
[1771094973115,0.028729,69818.0,69810.0,0.02873]
[1771094973619,0.0144,69818.0,69810.0,0.02873]
[1771094974420,0.028729,69818.0,69810.0,0.02873]
[1771094975122,0.028729,69818.0,69810.0,0.04306]
[1771094975321,0.028729,69818.0,69811.0,0.01433]
[1771094975523,0.0144,69818.0,69811.0,0.01433]
[1771094976024,0.028729,69818.0,69811.0,0.01433]
[1771094977515,0.028729,69818.0,69808.0,0.014331]
[1771094977725,0.10585235,69817.0,69807.0,0.028731]
[1771094978029,0.10585235,69817.0,69810.0,0.01433]
[1771094978326,0.028729,69818.0,69810.0,0.01433]
[1771094981718,0.014329,69817.0,69809.0,0.014331]
[1771094982126,0.01433,69815.0,69807.0,0.0144]
[1771094982427,0.01433,69815.0,69807.0,0.028731]
[1771094982723,0.01433,69813.0,69807.0,0.0144]
[1771094982924,0.02873,69813.0,69807.0,0.0144]
[1771094983131,0.0144,69813.0,69807.0,0.028731]
[1771094983526,0.0144,69813.0,69808.0,0.014331]
[1771094984832,0.0144,69813.0,69809.0,0.014331]
[1771094985134,0.0144,69813.0,69810.0,0.01433]
[1771094985432,0.0144,69816.0,69811.0,0.01433]
[1771094985929,0.014328,69823.0,69810.0,0.01433]
[1771094986138,0.15776,69822.0,69814.0,0.01433]
[1771094986335,0.0144,69821.0,69815.0,0.01433]
[1771094987524,0.0144,69821.0,69816.0,0.014329]
[1771094987836,0.0144,69821.0,69818.0,0.014329]
[1771094988138,0.0144,69823.0,69818.0,0.014329]
[1771094988329,0.14336,69824.0,69818.0,0.014329]
[1771094988842,0.014327,69827.0,69818.0,0.014329]
[1771094989030,0.014326,69830.0,69821.0,0.014328]
[1771094989232,0.0144,69829.0,69822.0,0.014328]
[1771094989437,0.028727,69829.0,69819.0,0.014329]
[1771094989738,0.028727,69829.0,69820.0,0.014328]
[1771094990438,0.028727,69829.0,69820.0,0.028656]
[1771094991637,0.028727,69829.0,69821.0,0.014328]
[1771094991935,0.11317734,69828.0,69815.0,0.0144]
[1771094992141,0.014329,69819.0,69812.0,0.15776]
[1771094992334,0.028658,69819.0,69812.0,0.15776]
[1771094992535,0.014329,69818.0,69812.0,0.15776]
[1771094992734,0.014329,69819.0,69812.0,0.15776]
[1771094993140,0.014329,69819.0,69812.0,0.14336]
[1771094993342,0.014329,69819.0,69812.0,0.15769]
[1771094996041,0.014329,69818.0,69812.0,0.15769]
[1771094996242,0.014329,69818.0,69812.0,0.14336]
[1771094996644,0.014329,69819.0,69812.0,0.15769]
[1771094997336,0.014329,69819.0,69813.0,0.01433]
[1771094997537,0.014329,69819.0,69812.0,0.15769]
[1771094998649,0.028658,69819.0,69812.0,0.15769]
[1771094999148,0.014326,69835.0,69828.0,0.014327]
[1771094999343,0.15776,69834.0,69828.0,0.014327]
[1771095000039,0.172086,69834.0,69828.0,0.014327]
[1771095000239,0.014326,69835.0,69833.0,0.014326]
[1771095000240,0.001,69835.0,69833.0,0.014326]
[1771095000441,0.14336,69837.0,69830.0,0.014326]
[1771095000641,0.0144,69836.0,69830.0,0.014326]
[1771095000841,0.0144,69835.0,69830.0,0.014326]
[1771095001449,0.014325,69837.0,69831.0,0.014326]
[1771095001652,0.0144,69836.0,69832.0,0.014326]
[1771095001946,0.0144,69835.0,69827.0,0.028727]
[1771095002144,0.14336,69840.0,69837.0,0.014325]
[1771095002350,0.0144,69839.0,69837.0,0.014325]
[1771095002550,0.0144,69839.0,69836.0,0.014325]
[1771095002850,0.014325,69837.0,69830.0,0.028726]
[1771095003049,0.014325,69837.0,69831.0,0.014326]
[1771095003251,0.028725,69839.0,69831.0,0.014326]
[1771095003452,0.014325,69838.0,69832.0,0.014326]
[1771095003653,0.014325,69838.0,69831.0,0.014326]
[1771095005046,0.014325,69838.0,69832.0,0.014326]
[1771095006347,0.014325,69837.0,69831.0,0.014326]
[1771095009550,0.12750234,69835.0,69820.0,0.157688]
[1771095009754,0.014326,69832.0,69825.0,0.014327]
[1771095009953,0.014326,69831.0,69825.0,0.0144]
[1771095010155,0.014327,69830.0,69825.0,0.0144]
[1771095010354,0.014326,69831.0,69825.0,0.0144]
[1771095010955,0.014327,69830.0,69825.0,0.0144]
[1771095011358,0.028652,69831.0,69825.0,0.0144]
[1771095012257,0.014326,69831.0,69825.0,0.0144]
[1771095014959,0.014327,69830.0,69825.0,0.0144]
[1771095016853,0.10468948,69829.0,69820.0,0.14336]
[1771095017063,0.014328,69823.0,69812.0,0.15765]
[1771095017366,0.014328,69823.0,69814.0,0.01433]
[1771095017560,0.014328,69823.0,69815.0,0.014329]
[1771095017857,0.0144,69824.0,69814.0,0.01433]
[1771095017858,0.0144,69824.0,69818.0,0.014329]
[1771095018051,0.0144,69824.0,69819.0,0.014329]
[1771095019757,0.014326,69831.0,69821.0,0.014328]
[1771095019967,0.028726,69830.0,69821.0,0.014328]
[1771095020463,0.014326,69831.0,69822.0,0.014328]
[1771095020663,0.014326,69835.0,69820.0,0.014328]
[1771095020664,0.014327,69829.0,69820.0,0.014328]
[1771095020864,0.028727,69830.0,69820.0,0.014328]
[1771095020865,0.028727,69828.0,69820.0,0.014328]
[1771095021054,0.028727,69828.0,69819.0,0.0144]
[1771095021254,0.014328,69822.0,69819.0,0.0144]
[1771095021459,0.014328,69822.0,69818.0,0.0144]
[1771095021760,0.014328,69822.0,69817.0,0.0144]
[1771095022058,0.028656,69822.0,69813.0,0.01433]
[1771095022260,0.014328,69821.0,69813.0,0.01433]
[1771095022460,0.014329,69817.0,69810.0,0.0144]
[1771095022661,0.01433,69815.0,69810.0,0.0144]
[1771095023658,0.0144,69819.0,69810.0,0.0144]
[1771095023864,0.0144,69819.0,69811.0,0.01433]
[1771095024066,0.0144,69819.0,69812.0,0.01433]
[1771095024264,0.0144,69820.0,69816.0,0.014329]
[1771095024466,0.0144,69821.0,69811.0,0.10956332]
[1771095024661,0.0144,69821.0,69815.0,0.014329]
[1771095024867,0.0144,69821.0,69814.0,0.01433]
[1771095025162,0.0144,69821.0,69814.0,0.02866]
[1771095025367,0.0144,69821.0,69812.0,0.01433]
[1771095025571,0.014329,69817.0,69813.0,0.0144]
[1771095028577,0.014329,69819.0,69813.0,0.0144]
[1771095028774,0.028728,69821.0,69813.0,0.0144]
[1771095029476,0.028728,69821.0,69812.0,0.01433]
[1771095029672,0.014329,69819.0,69811.0,0.0144]
[1771095030072,0.014329,69818.0,69811.0,0.0144]
[1771095031476,0.014329,69819.0,69811.0,0.0144]
[1771095033478,0.014329,69819.0,69811.0,0.02873]
[1771095035875,0.0144,69821.0,69811.0,0.0144]
[1771095036081,0.0144,69821.0,69816.0,0.014329]
[1771095036277,0.0144,69821.0,69815.0,0.014329]
[1771095036874,0.157648,69824.0,69815.0,0.014329]
[1771095036875,0.014328,69824.0,69815.0,0.014329]
[1771095037075,0.028728,69823.0,69814.0,0.01433]
[1771095037579,0.014329,69818.0,69811.0,0.0144]
[1771095037882,0.01433,69815.0,69811.0,0.0144]
[1771095038275,0.014329,69816.0,69810.0,0.0144]
[1771095038983,0.014329,69816.0,69811.0,0.001]
[1771095039777,0.01433,69814.0,69811.0,0.001]
[1771095039981,0.014329,69816.0,69810.0,0.0144]
[1771095040880,0.01433,69815.0,69809.0,0.0144]
[1771095041078,0.01433,69815.0,69806.0,0.157651]
[1771095041272,0.01433,69815.0,69807.0,0.0144]
[1771095043085,0.014329,69816.0,69808.0,0.014331]
[1771095043484,0.028729,69819.0,69810.0,0.01433]
[1771095043780,0.0144,69819.0,69812.0,0.01433]
[1771095043985,0.0144,69818.0,69812.0,0.01433]
[1771095044182,0.0144,69817.0,69812.0,0.01433]
[1771095048481,0.0144,69817.0,69809.0,0.014331]
[1771095048685,0.0144,69817.0,69810.0,0.01433]
[1771095049188,0.028729,69817.0,69809.0,0.014331]
[1771095049385,0.0144,69817.0,69810.0,0.014331]
[1771095049585,0.11928554,69816.0,69808.0,0.014331]
[1771095049781,0.10495554,69816.0,69809.0,0.014331]
[1771095049989,0.028729,69817.0,69809.0,0.014331]
[1771095051891,0.028729,69817.0,69807.0,0.0144]
[1771095051892,0.01433,69814.0,69807.0,0.0144]
[1771095053085,0.01433,69816.0,69808.0,0.014331]
[1771095053287,0.01433,69815.0,69807.0,0.028731]
[1771095054189,0.01433,69815.0,69807.0,0.0144]
[1771095054686,0.11928554,69816.0,69807.0,0.028731]
[1771095054987,0.01433,69816.0,69807.0,0.028731]
[1771095055186,0.01433,69816.0,69808.0,0.014331]
[1771095056691,0.01433,69815.0,69807.0,0.0144]
[1771095056991,0.01433,69815.0,69807.0,0.028731]
[1771095057592,0.014329,69816.0,69807.0,0.028731]
[1771095058186,0.014329,69816.0,69807.0,0.0144]
[1771095058187,0.01433,69814.0,69807.0,0.0144]
[1771095058887,0.01433,69815.0,69807.0,0.0144]
[1771095059282,0.014329,69816.0,69807.0,0.028731]
[1771095059883,0.014329,69816.0,69807.0,0.043062]
[1771095060195,0.014329,69816.0,69807.0,0.028731]
[1771095060390,0.014329,69816.0,69807.0,0.043062]
[1771095061399,0.01433,69815.0,69807.0,0.028731]